Department family,Entity,Date,Expense Type,Expense area,Supplier,Transaction number,Amount,Narrative
Department for Culture Media and Sport,Department for Culture Media and Sport,42339,Oth Professional Services Prog,ODA Residuary Functions,Turner & Townsend,30043472,46320,ODA - Commercial Services Framework
Department for Culture Media and Sport,Department for Culture Media and Sport,42339,Capital Grant Private Sector,Broadband UK Capital+Programme,Arqiva Ltd,30043473,1193389.62,Mobile Infrastructure Project Performance: October 2015
Department for Culture Media and Sport,Department for Culture Media and Sport,42339,Capital Grant Private Sector,GIA Architecture+Heritage,Greenwich Foundation for the RN College,50001991,101500,ORNC Grant Claim December 2015
Department for Culture Media and Sport,Department for Culture Media and Sport,42339,Grant-in-Aid (DCMS NDPBs),GIA Museums & Galleries,Geffrye Museum,50001993,140041,GM Grant in Aid December 2015
Department for Culture Media and Sport,Department for Culture Media and Sport,42339,Grant-in-Aid (DCMS NDPBs),GIA Museums & Galleries,Wallace Collection,50001994,300000,TWC Grant in Aid December 2015
Department for Culture Media and Sport,Department for Culture Media and Sport,42339,Grant-in-Aid (DCMS NDPBs),GIA Museums & Galleries,Sir John Soane's Museum,50001995,81000,SJSM Grant in Aid December 2015
Department for Culture Media and Sport,Department for Culture Media and Sport,42339,Grant-in-Aid (DCMS NDPBs),GIA Museums & Galleries,National Portrait Gallery,50001996,552167,NPG Grant in Aid December 2015
Department for Culture Media and Sport,Department for Culture Media and Sport,42339,Grant-in-Aid (DCMS NDPBs),GIA Museums & Galleries,Horniman Museum,50001997,488632,HM Grant in Aid December 2015
Department for Culture Media and Sport,Department for Culture Media and Sport,42339,Grant-in-Aid (DCMS NDPBs),GIA Museums & Galleries,Victoria & Albert Museum,50001999,3109084,V&A Grant in Aid December 2015
Department for Culture Media and Sport,Department for Culture Media and Sport,42339,Grant-in-Aid (DCMS NDPBs),OFCOM,OFCOM,50002000,4020993,December 2015/16 Spectrum Mngmnt Costs
Department for Culture Media and Sport,Department for Culture Media and Sport,42339,Grant-in-Aid (DCMS NDPBs),OFCOM,OFCOM,50002001,491414,December 2015/16 ORPHAN Costs
Department for Culture Media and Sport,Department for Culture Media and Sport,42339,Grant-in-Aid (DCMS NDPBs),GIA British Film Institute,British Film Institute,50002002,2792927,BFI Grant in Aid Dcember 2015
Department for Culture Media and Sport,Department for Culture Media and Sport,42339,Grant-in-Aid (DCMS NDPBs),GIA Sports bodies,Sport England,50002003,6500000,SE Grant in Aid December 2015
Department for Culture Media and Sport,Department for Culture Media and Sport,42339,Grant-in-Aid (DCMS NDPBs),GIA Sports bodies,Sport Ground Safety Authority,50002004,83500,SGSA Grant in Aid December 2015
Department for Culture Media and Sport,Department for Culture Media and Sport,42339,Grant-in-Aid (DCMS NDPBs),GIA Sports bodies,United Kingdom Anti Doping Ltd,50002006,1083000,UKAD Grant in Aid December 2015
Department for Culture Media and Sport,Department for Culture Media and Sport,42339,Grant-in-Aid (DCMS NDPBs),GIA Arts bodies,Arts Council of England,50002008,27000000,ACE Grant in Aid December 2015
Department for Culture Media and Sport,Department for Culture Media and Sport,42339,Grant-in-Aid (DCMS NDPBs),GIA Architecture+Heritage,National Heritage Memorial Fund,50002009,3500000,NHMF Grant in Aid December 2015
Department for Culture Media and Sport,Department for Culture Media and Sport,42339,Grant-in-Aid (DCMS NDPBs),GIA Tourism bodies,VisitBritain,50002010,4500000,VB Grant in Aid December 2015
Department for Culture Media and Sport,Department for Culture Media and Sport,42339,Grant to BBC:Home Broadcasting,Home Broadcasting:Grant to BBC,British Broadcasting Corporation,50002012,35275000,BBC GIA DECEMBER 2015 PT1
Department for Culture Media and Sport,Department for Culture Media and Sport,42339,Grant-in-Aid (DCMS NDPBs),GIA Museums & Galleries,Natural History Museum,50002017,3472000,NHM Grant in Aid December 2015
Department for Culture Media and Sport,Department for Culture Media and Sport,42339,Grant-in-Aid (DCMS NDPBs),GIA Museums & Galleries,Science Museum Group (ex-NMSI),50002018,3334916,SMG Grant in Aid December 2015
Department for Culture Media and Sport,Department for Culture Media and Sport,42339,Grant-in-Aid (DCMS NDPBs),GIA Museums & Galleries,The Royal Armouries,50002019,607761,RA Grant in Aid December 2015
Department for Culture Media and Sport,Department for Culture Media and Sport,42339,Grant-in-Aid (DCMS NDPBs),GIA Museums & Galleries,Imperial War Museum,50002021,1644998,IWM Grant in Aid December 2015
Department for Culture Media and Sport,Department for Culture Media and Sport,42339,Grant-in-Aid (DCMS NDPBs),GIA Libraries bodies,PLR - British Library,50002023,10013070,BL Grant in Aid December 2015
Department for Culture Media and Sport,Department for Culture Media and Sport,42339,Grant-in-Aid (DCMS NDPBs),GIA Museums & Galleries,British Museum,50002024,3294000,BM Grant in Aid December 2015
Department for Culture Media and Sport,Department for Culture Media and Sport,42339,Grant-in-Aid (DCMS NDPBs),GIA Museums & Galleries,National Museums & Galleries Merseyside,50002025,1704923,NML Grant in Aid December 2015
Department for Culture Media and Sport,Department for Culture Media and Sport,42340,Capital Grant Private Sector,DAB Digital Radio,Bauer Digital Radio Ltd,30043425,150780.4,Local DAB Grant Application Glasgow
Department for Culture Media and Sport,Department for Culture Media and Sport,42340,Capital Grant Private Sector,DAB Digital Radio,Bauer Digital Radio Ltd,30043426,142510.44,Local DAB Grant Application Edinburgh
Department for Culture Media and Sport,Department for Culture Media and Sport,42340,Capital Grant Private Sector,DAB Digital Radio,Bauer Digital Radio Ltd,30043427,91489.35,Local DAB Grant Application Teeside
Department for Culture Media and Sport,Department for Culture Media and Sport,42340,Capital Grant Private Sector,DAB Digital Radio,CE Digital Limited,30043468,62022.73,Local DAB Grant Application Manchester
Department for Culture Media and Sport,Department for Culture Media and Sport,42340,Capital Grant Private Sector,DAB Digital Radio,CE Digital Limited,30043469,101656.85,Local DAB Grant Application Birmingham
Department for Culture Media and Sport,Department for Culture Media and Sport,42341,Tribunal Administration Fees,Sports - Programme Costs,Sport Resolutions (UK),30043487,26780,NADP SERVICE CONTRACT - 1/11 TO 30/11/15
Department for Culture Media and Sport,Department for Culture Media and Sport,42341,Grant-in-Aid (DCMS NDPBs),GIA Museums & Galleries,National Gallery,50001992,1667714,NG Grant Claim December 2015
Department for Culture Media and Sport,Department for Culture Media and Sport,42341,Grant-in-Aid (DCMS NDPBs),GIA Museums & Galleries,National Maritime Museum,50001998,1411266,RMG Grant in Aid December 2015
Department for Culture Media and Sport,Department for Culture Media and Sport,42341,Grant-in-Aid (DCMS NDPBs),GIA Sports bodies,United Kingdom Sports Council,50002005,2949140,UKS Grant in Aid December 2015
Department for Culture Media and Sport,Department for Culture Media and Sport,42341,Grant-in-Aid (DCMS NDPBs),GIA Architecture+Heritage,Historic England (GIA),50002007,5300000,HE Grant in Aid December 2015
Department for Culture Media and Sport,Department for Culture Media and Sport,42341,Grant-in-Aid (DCMS NDPBs),GIA Gambling + Lottery bodies,National Lottery Commission,50002011,278209,NLC Grant in Aid December 2015
Department for Culture Media and Sport,Department for Culture Media and Sport,42341,Grant-in-Aid (DCMS NDPBs),GIA Museums & Galleries,Tate Gallery,50002022,2582583,TATE Grant in Aid December 2015
Department for Culture Media and Sport,Department for Culture Media and Sport,42342,Capital Grants to LAs,Broadband UK Capital+Programme,Somerset County Council,30043491,5232792,BDUK Superfast Britain milestone grant claim payment
Department for Culture Media and Sport,Department for Culture Media and Sport,42342,Capital Grants to LAs,Broadband UK Capital+Programme,Greater London Authority,30043497,1232209,BDUK Superconnected Cities Connection Vouchers Claim
Department for Culture Media and Sport,Department for Culture Media and Sport,42342,Capital Grants to LAs,Broadband UK Capital+Programme,Greater London Authority,30043498,1552703.37,BDUK Superconnected Cities Connection Vouchers Claim
Department for Culture Media and Sport,Department for Culture Media and Sport,42342,Capital Grants to LAs,Broadband UK Capital+Programme,Cambridgeshire CC (Urban),30043502,56986,BDUK Superconnected Cities Connection Vouchers Claim
Department for Culture Media and Sport,Department for Culture Media and Sport,42342,Capital Grants to LAs,Broadband UK Capital+Programme,Brighton & Hove City Council,30043503,80163,BDUK Superconnected Cities Connection Vouchers Claim
Department for Culture Media and Sport,Department for Culture Media and Sport,42342,Capital Grants to LAs,Broadband UK Capital+Programme,Newcastle City Council,30043504,606062,BDUK Superconnected Cities Connection Vouchers Claim
Department for Culture Media and Sport,Department for Culture Media and Sport,42342,Capital Grants to LAs,Broadband UK Capital+Programme,Brighton & Hove City Council,30043505,183946,BDUK Superconnected Cities Connection Vouchers Claim
Department for Culture Media and Sport,Department for Culture Media and Sport,42342,Capital Grants to LAs,Broadband UK Capital+Programme,Brighton & Hove City Council,30043506,253467,BDUK Superconnected Cities Connection Vouchers Claim
Department for Culture Media and Sport,Department for Culture Media and Sport,42342,Finance & Accounting Services,Finance,Liberata UK Ltd,30043512,22666.66,Fixed Cost for Account Service Nov 2015
Department for Culture Media and Sport,Department for Culture Media and Sport,42342,Internal Audit Service CLG fee,Director of Finance,HM Treasury (15811),30043521,134639.5,Internal Audit Service Q1 + Q2 15/16
Department for Culture Media and Sport,Department for Culture Media and Sport,42342,Current Grants Private Sector,Listed Places of Worship Grants,Topmark Claims Management Ltd,30043579,838000,Funding for LPW 261115_031215
Department for Culture Media and Sport,Department for Culture Media and Sport,42345,General Repairs,ODA Residuary Functions,Ideal Response Group Ltd,30043489,133479.06,ODA001 Payment No 14 for P/E 30/10/2015
Department for Culture Media and Sport,Department for Culture Media and Sport,42345,Temp staff Interim managers,ODA Residuary Functions,Belgrave Eccleston Ltd,30043580,35100,Consultancy Servies 01.11.15 to 30.11.15
Department for Culture Media and Sport,Department for Culture Media and Sport,42345,Grant to BBC:Home Broadcasting,Home Broadcasting:Grant to BBC,British Broadcasting Corporation,50002013,35275000,BBC GIA DECEMBER 2015 PT2
Department for Culture Media and Sport,Department for Culture Media and Sport,42346,Capital Grants to LAs,Broadband UK Capital+Programme,Durham County Council,30043569,1625628,BDUK Superfast Britain milestone grant claim payment
Department for Culture Media and Sport,Department for Culture Media and Sport,42346,Capital Grants to LAs,Broadband UK Capital+Programme,East Sussex County Council,30043570,1777797,BDUK Superfast Britain milestone grant claim payment
Department for Culture Media and Sport,Department for Culture Media and Sport,42349,Research,EAU Taking Part Survey,TNS UK LTD,30043605,129494,Completion of October 2015 Fieldwork
Department for Culture Media and Sport,Department for Culture Media and Sport,42349,Current Grants Private Sector,Listed Places of Worship Grants,Topmark Claims Management Ltd,30043635,977000,Funding for LPW 031215_101215
Department for Culture Media and Sport,Department for Culture Media and Sport,42349,Current Grants Private Sector,Listed Places of Worship Grants,Topmark Claims Management Ltd,30043636,1500000,Funding for LPW 031215_101215
Department for Culture Media and Sport,Department for Culture Media and Sport,42349,Grant to BBC:Home Broadcasting,Home Broadcasting:Grant to BBC,British Broadcasting Corporation,50002014,141100000,BBC GIA DECEMBER 2015 PT3
Department for Culture Media and Sport,Department for Culture Media and Sport,42352,Capital Grant Private Sector,Broadband UK Capital+Programme,Quickline Communications Ltd,30043638,266779,BDUK Superfast Britain milestone grant claim payment
Department for Culture Media and Sport,Department for Culture Media and Sport,42352,Capital Grants to LAs,Broadband UK Capital+Programme,Dorset County Council,30043670,2452301,DORS/C6/MMO/M1/M2/JUN
Department for Culture Media and Sport,Department for Culture Media and Sport,42353,Other Consultancy,Broadband Delivery UK (Admin),Fincastle Partners Limited,30043679,52587.5,Fincastle Mobile Coverage Rvw
Department for Culture Media and Sport,Department for Culture Media and Sport,42353,Current Grants Private Sector,The First World War Centenary Cathedral Repairs Fund,The Archbishops Council,30043718,144439,BIRMINGHAM GRANT R3 NOV - DEC 2015
Department for Culture Media and Sport,Department for Culture Media and Sport,42353,Current Grants Private Sector,The First World War Centenary Cathedral Repairs Fund,The Archbishops Council,30043719,50772,BLACKBURN GRANT PRT 2 R2 NOV - DEC 2015
Department for Culture Media and Sport,Department for Culture Media and Sport,42353,Current Grants Private Sector,The First World War Centenary Cathedral Repairs Fund,The Archbishops Council,30043720,46108.06,BLACKBURN GRANT PRT 1 R2 NOV - DEC 2015
Department for Culture Media and Sport,Department for Culture Media and Sport,42353,Current Grants Private Sector,The First World War Centenary Cathedral Repairs Fund,The Archbishops Council,30043721,38156.55,BRADFORD GRANT R2 NOV - DEC 2015
Department for Culture Media and Sport,Department for Culture Media and Sport,42353,Current Grants Private Sector,The First World War Centenary Cathedral Repairs Fund,The Archbishops Council,30043722,150000,CANTEBURY GRANT R2 NOV - DEC 2015
Department for Culture Media and Sport,Department for Culture Media and Sport,42354,Mailroom Services,Estates & Property Services,HM Revenue & Customs,30043604,1210155.82,15-16 Q2 DCMS Workstations
Department for Culture Media and Sport,Department for Culture Media and Sport,42354,Current Grants Private Sector,The First World War Centenary Cathedral Repairs Fund,The Archbishops Council,30043728,107592.1,CHELMSFORD GRANT R2 NOV - DEC 2015
Department for Culture Media and Sport,Department for Culture Media and Sport,42354,Current Grants Private Sector,The First World War Centenary Cathedral Repairs Fund,The Archbishops Council,30043729,97513.04,CHESTER GRANT R2&3 NOV - DEC 2015
Department for Culture Media and Sport,Department for Culture Media and Sport,42354,Current Grants Private Sector,The First World War Centenary Cathedral Repairs Fund,The Archbishops Council,30043730,38661.32,COVENRTY GRANT R2 NOV - DEC 2015
Department for Culture Media and Sport,Department for Culture Media and Sport,42354,Current Grants Private Sector,The First World War Centenary Cathedral Repairs Fund,The Archbishops Council,30043731,30196.87,DERBY GRANT R3 NOV - DEC 2015
Department for Culture Media and Sport,Department for Culture Media and Sport,42354,Current Grants Private Sector,The First World War Centenary Cathedral Repairs Fund,The Archbishops Council,30043732,168113,ELY CATHEDRAL GRANT R2 NOV - DEC 2015
Department for Culture Media and Sport,Department for Culture Media and Sport,42354,Current Grants Private Sector,The First World War Centenary Cathedral Repairs Fund,The Archbishops Council,30043733,174996.71,EXETER GRANT R2 NOV - DEC 2015
Department for Culture Media and Sport,Department for Culture Media and Sport,42354,Current Grants Private Sector,The First World War Centenary Cathedral Repairs Fund,The Archbishops Council,30043734,135744.39,GUILFORD GRANT R3 NOV - DEC 2015
Department for Culture Media and Sport,Department for Culture Media and Sport,42354,Current Grants Private Sector,The First World War Centenary Cathedral Repairs Fund,The Archbishops Council,30043735,53016.69,HEREFORD GRANT R2 NOV - DEC 2015
Department for Culture Media and Sport,Department for Culture Media and Sport,42354,Current Grants Private Sector,The First World War Centenary Cathedral Repairs Fund,The Archbishops Council,30043736,80724.99,LEICESTER GRANT R1 NOV - DEC 2015
Department for Culture Media and Sport,Department for Culture Media and Sport,42354,Current Grants Private Sector,The First World War Centenary Cathedral Repairs Fund,The Archbishops Council,30043737,53408.77,LICHFIELD GRANT R3 NOV - DEC 2015
Department for Culture Media and Sport,Department for Culture Media and Sport,42354,Current Grants Private Sector,The First World War Centenary Cathedral Repairs Fund,The Archbishops Council,30043738,300000,LINCOLN GRANT R2 NOV - DEC 2015
Department for Culture Media and Sport,Department for Culture Media and Sport,42354,Current Grants Private Sector,The First World War Centenary Cathedral Repairs Fund,The Archbishops Council,30043739,100883.47,LIVERPOOL GRANT R2 NOV - DEC 2015
Department for Culture Media and Sport,Department for Culture Media and Sport,42354,Current Grants Private Sector,The First World War Centenary Cathedral Repairs Fund,The Archbishops Council,30043740,60887,MANCHESTER GRANT R2 NOV - DEC 2015
Department for Culture Media and Sport,Department for Culture Media and Sport,42354,Current Grants Private Sector,The First World War Centenary Cathedral Repairs Fund,The Archbishops Council,30043741,59109.49,NEWCASTLE GRANT R2 NOV - DEC 2015
Department for Culture Media and Sport,Department for Culture Media and Sport,42354,Current Grants Private Sector,The First World War Centenary Cathedral Repairs Fund,The Archbishops Council,30043742,62240.98,NORWICH GRANT R2 NOV - DEC 2015
Department for Culture Media and Sport,Department for Culture Media and Sport,42354,Current Grants Private Sector,The First World War Centenary Cathedral Repairs Fund,The Archbishops Council,30043744,81616.6,PETERBOROUGH GRANT R3 NOV - DEC 2015
Department for Culture Media and Sport,Department for Culture Media and Sport,42354,Current Grants Private Sector,The First World War Centenary Cathedral Repairs Fund,The Archbishops Council,30043745,171367.54,PORTSMOUTH GRANT R2&3 NOV - DEC 2015
Department for Culture Media and Sport,Department for Culture Media and Sport,42354,Current Grants Private Sector,The First World War Centenary Cathedral Repairs Fund,The Archbishops Council,30043746,144171.65,ROCHESTER GRANT R2 NOV - DEC 2015
Department for Culture Media and Sport,Department for Culture Media and Sport,42354,Current Grants Private Sector,The First World War Centenary Cathedral Repairs Fund,The Archbishops Council,30043747,54390.21,SHREWSBURY GRANT R2 NOV - DEC 2015
Department for Culture Media and Sport,Department for Culture Media and Sport,42354,Current Grants Private Sector,The First World War Centenary Cathedral Repairs Fund,The Archbishops Council,30043749,27140.65,ST EDMUNDSBURY GRANT R3 NOV - DEC 15
Department for Culture Media and Sport,Department for Culture Media and Sport,42354,Current Grants Private Sector,The First World War Centenary Cathedral Repairs Fund,The Archbishops Council,30043750,75218.35,WAKEFIELD GRANT R2 NOV - DEC 2015
Department for Culture Media and Sport,Department for Culture Media and Sport,42354,Current Grants Private Sector,The First World War Centenary Cathedral Repairs Fund,The Archbishops Council,30043751,27761.42,WORCESTER GRANT R2 NOV - DEC 2015
Department for Culture Media and Sport,Department for Culture Media and Sport,42354,Current Grants Private Sector,The First World War Centenary Cathedral Repairs Fund,The Archbishops Council,30043752,86000,YORK MINSTER GRANT R2 NOV - DEC 2015
Department for Culture Media and Sport,Department for Culture Media and Sport,42354,Capital Grant Private Sector,Broadband UK Capital+Programme,Call Flow Solutions Ltd,30043754,35299,BDUK Market Test Pilots milestone payment
Department for Culture Media and Sport,Department for Culture Media and Sport,42354,Capital Grant Private Sector,Broadband UK Capital+Programme,Call Flow Solutions Ltd,30043755,79985,BDUK Market Test Pilots milestone payment
Department for Culture Media and Sport,Department for Culture Media and Sport,42354,Capital Grants to LAs,Broadband UK Capital+Programme,Leicestershire County Council,30043756,417294,BDUK Superfast Britain milestone grant claim payment
Department for Culture Media and Sport,Department for Culture Media and Sport,42354,Capital Grants to LAs,Broadband UK Capital+Programme,Lincolnshire County Council,30043757,2830905.81,BDUK Superfast Britain milestone grant claim payment
Department for Culture Media and Sport,Department for Culture Media and Sport,42354,Capital Grants to LAs,Broadband UK Capital+Programme,Essex County Council,30043758,1354908,BDUK Superfast Britain milestone grant claim payment
Department for Culture Media and Sport,Department for Culture Media and Sport,42354,Research,EAU Policy Research + Eval,Office for National Statistics,30043769,26625,Fees for sponsored question IPS survey
Department for Culture Media and Sport,Department for Culture Media and Sport,42354,Capital Grants to LAs,Broadband UK Capital+Programme,Nottinghamshire County Council,30043775,1261311,BDUK Superfast Britain milestone grant claim payment
Department for Culture Media and Sport,Department for Culture Media and Sport,42354,Capital Grants to LAs,Broadband UK Capital+Programme,Dorset County Council,30043776,994201,BDUK Superfast Britain milestone grant claim payment
Department for Culture Media and Sport,Department for Culture Media and Sport,42354,Capital Grant Private Sector,Grant support to NFTS,National Film & Television School,50002026,515583,NFTS Grant Claim December 2015
Department for Culture Media and Sport,Department for Culture Media and Sport,42355,Capital Grant Private Sector,DAB Digital Radio,Now Digital Limited,30043771,39398,Now Digital DL000008-2/Final 2
Department for Culture Media and Sport,Department for Culture Media and Sport,42356,T&S UK (Officials only),Procurement,Redfern Travel Limited,30043565,53385.44,Travel Summary & Recovery for Nov-15
Department for Culture Media and Sport,Department for Culture Media and Sport,42356,Current Grants Private Sector,Listed Places of Worship Grants,Topmark Claims Management Ltd,30043815,567000,Funding for LPW 211215_281215
Department for Culture Media and Sport,Department for Culture Media and Sport,42356,Grant to OGD (Resource),DCMS contribution toPFI grants,Dept for Communities & Local Govt,30043816,7222038,Area Based Grant Contributuion Q3 15/12/
Department for Culture Media and Sport,Department for Culture Media and Sport,42356,Capital Grant Private Sector,Broadband UK Capital+Programme,AB Internet Ltd,30043841,139948.18,BDUK Market Test Pilots October
Department for Culture Media and Sport,Department for Culture Media and Sport,42356,Accruals,ODA Residuary Functions,Berwin Leighton Paisner client a/c - ODA,30043845,1215500,Woolwich Line Enclosure
Department for Culture Media and Sport,Department for Culture Media and Sport,42356,Grant to BBC:Home Broadcasting,Home Broadcasting:Grant to BBC,British Broadcasting Corporation,50002015,35275000,BBC GIA DECEMBER 2015 PT4
Department for Culture Media and Sport,Department for Culture Media and Sport,42359,Capital Grant Private Sector,Broadband UK Capital+Programme,Arqiva Ltd,30043822,425207.34,Mobile Infrastructure Project Performance November 2015
Department for Culture Media and Sport,Department for Culture Media and Sport,42359,Capital Grants to LAs,Broadband UK Capital+Programme,Derby City Council,30043827,483048,BDUK Superconnected Cities Connection Vouchers Claim
Department for Culture Media and Sport,Department for Culture Media and Sport,42359,Capital Grants to LAs,Broadband UK Capital+Programme,Manchester City Council,30043829,479463,BDUK Superconnected Cities Connection Vouchers Claim
Department for Culture Media and Sport,Department for Culture Media and Sport,42359,Capital Grants to LAs,Broadband UK Capital+Programme,Manchester City Council,30043834,99557,BDUK Superconnected Cities Connection Vouchers Claim
Department for Culture Media and Sport,Department for Culture Media and Sport,42359,Capital Grants to LAs,Broadband UK Capital+Programme,City of York Council,30043837,84776,BDUK Superconnected Cities Connection Vouchers Claim
Department for Culture Media and Sport,Department for Culture Media and Sport,42360,Other Creditors,OFCOM,States of Guernsey,30043824,331115.37,Guernsey 2014-15 WTA+Spectrum receipts
Department for Culture Media and Sport,Department for Culture Media and Sport,42360,Other Creditors,OFCOM,Treasurer of the States of Jersey,30043825,537307.84,Jersey 2014-15 WTA+Spectrum
Department for Culture Media and Sport,Department for Culture Media and Sport,42360,Other Creditors,OFCOM,Isle of Man Government,30043826,421569.99,Isle of Man 2014-15 WTA+Spectrum
Department for Culture Media and Sport,Department for Culture Media and Sport,42360,Oth Professional Services Prog,ODA Residuary Functions,Turner & Townsend,30043856,36360,ODA - Commercial Services Framework
Department for Culture Media and Sport,Department for Culture Media and Sport,42360,Adverse Legal Costs,Estates & Property Services,Treasury Sols (Client Monies Only ),30043859,27500,Anne Marks Litigation
Department for Culture Media and Sport,Department for Culture Media and Sport,42361,Current - non GIA,Director of Finance,HM Revenue & Customs,30043886,45630.09,VAT liability
Department for Culture Media and Sport,Department for Culture Media and Sport,42361,Current Grants Private Sector,Media - Programme Costs,Multiplex Broadcasting Services NI Ltd,30043889,25000.3,MBS NI Grant for November /December 2015
Department for Culture Media and Sport,Department for Culture Media and Sport,42361,Tribunal Administration Fees,Sports - Programme Costs,Sport Resolutions (UK),30043890,33680,NADP Service - 1 Dec 2015 - 31 Dec 2015
Department for Culture Media and Sport,Department for Culture Media and Sport,42361,Capital Grants to LAs,Broadband UK Capital+Programme,Isle of Wight Council,30043894,167521,BDUK Superfast Britain milestone grant claim payment
Department for Culture Media and Sport,Department for Culture Media and Sport,42361,Capital Grants to LAs,Broadband UK Capital+Programme,West Sussex County Council,30043895,275924,BDUK Superfast Britain milestone grant claim payment
Department for Culture Media and Sport,Department for Culture Media and Sport,42361,Capital Grants to LAs,Broadband UK Capital+Programme,Shropshire Council,30043896,1580854,BDUK Superfast Britain milestone grant claim payment
Department for Culture Media and Sport,Department for Culture Media and Sport,42361,IT Support,Broadband Delivery UK (Admin),Cora Systems Ltd,30043911,30920,Cora Phase 2 Changes to Project Vision
Department for Culture Media and Sport,Department for Culture Media and Sport,42361,Accruals,ODA Residuary Functions,HMRC PAYE (ODA CIS Only),30043915,117061.97,PAYE liability
Department for Culture Media and Sport,Department for Culture Media and Sport,42362,Works Manager Fees,State Ceremonials Prog Costs,ARCADIS Solutions Ltd,30043910,175182.83,Ceremonial Event Management Services Nov'15
Department for Culture Media and Sport,Department for Culture Media and Sport,42362,Research,EAU Taking Part Survey,TNS UK LTD,30043912,129494,Completion of November 2015 Fieldwork
Department for Culture Media and Sport,Department for Culture Media and Sport,42362,Grant to BBC:Home Broadcasting,Home Broadcasting:Grant to BBC,British Broadcasting Corporation,50002016,35275000,BBC GIA DECEMBER 2015 PT5
Department for Culture Media and Sport,Department for Culture Media and Sport,42369,Capital Grant Private Sector,DAB Digital Radio,Bauer Digital Radio Ltd,30043949,116614.51,Local DAB Grant Application Northern Ireland
